Cogmind - Beta 15 @@@ ROGUE MODE // 2025.10.19 @ 00:55:58 Player: morimori Result: Destroyed by D-53 Grenadier with Mini Grenade Launcher Performance ------------- Evolutions (0) 0 Regions Visited (4) 800 Robots Destroyed (18) 90 Value Destroyed (246) 246 Prototype IDs (2) 40 Alien Tech Used (0) 0 Bonus (-50) -50 TOTAL SCORE: 1126 Bonus ------- Friendly Fire -50 Cogmind --------- Core Integrity 0/250 Matter 300/300 Energy 100/100 System Corruption 0% Temperature Cool (0) Movement Rolling (130) Ox2 Location -9/Mines Parts ------- > --- POWER (1) -------- (None) > --- PROPULSION (2) --- Compact Wheel Compact Wheel > --- UTILITY (2) ------ Huge Storage Unit > --- WEAPON (2) ------- (None) > --- INVENTORY (25) --- Light Ion Engine Light Ion Engine Fission Core Fission Core Wheel Compact Wheel Compact Wheel Hover Unit Hover Unit Small Storage Unit Large Storage Unit High-capacity Storage Unit Light Armor Plating Reactive Plating EM Pulse Gun Field Laser Assault Rifle Light Assault Rifle Light Assault Rifle Minigun Assault Cannon Rocket Launcher Mini Grenade Launcher Peak State ------------ > --- POWER ------------ Ion Engine > --- PROPULSION ------- Compact Wheel Compact Wheel > --- UTILITY ---------- Huge Storage Unit Seismic Detector > --- WEAPON ----------- Medium Laser Hammer > --- INVENTORY -------- Light Ion Engine Light Ion Engine Reinforced Deuterium Engine Fission Core Fission Core Wheel Compact Wheel Compact Wheel Hover Unit Hover Unit Small Storage Unit Large Storage Unit Light Armor Plating Reactive Plating EM Pulse Gun Field Laser Assault Rifle Light Assault Rifle Light Assault Rifle Minigun Assault Cannon [Rating: 11] Favorites ----------- Power Ion Engine Engine Ion Engine Propulsion Compact Wheel Wheel Compact Wheel Utility Seismic Detector Device Seismic Detector Storage Huge Storage Unit Weapon Medium Laser Energy Gun Medium Laser Ballistic Gun Light Assault Rifle Impact Weapon Hammer Build | -11 -10 -10 -10 -9 ------- Run | Yrd Mat Min Exi Min Slots Evolved . | . . . . . Power . | . . . . . Propulsion . | . . . . . Utility . | . . . . . Weapon . | . . . . . Parts Attached 10 | 7 2 . 1 . Power 1 | 1 . . . . Engine 1 | 1 . . . . Core . | . . . . . Reactor . | . . . . . Propulsion 3 | 2 1 . . . Treads . | . . . . . Leg . | . . . . . Wheel 3 | 2 1 . . . Hover . | . . . . . Flight . | . . . . . Utility 3 | 2 1 . . . Device 1 | 1 . . . . Storage 2 | 1 1 . . . Processor . | . . . . . Hackware . | . . . . . Protection . | . . . . . Artifact . | . . . . . Weapon 3 | 2 . . 1 . Energy Gun 1 | 1 . . . . Energy Cannon . | . . . . . Ballistic Gun 1 | 1 . . . . Ballistic Cannon . | . . . . . Launcher . | . . . . . Special Weapon . | . . . . . Impact Weapon 1 | . . . 1 . Slashing Weapon . | . . . . . Piercing Weapon . | . . . . . Special Melee Weapon . | . . . . . Unidentified Prototypes . | . . . . . Parts Lost 4 | . . . . 4 Power 1 | . . . . 1 Propulsion . | . . . . . Utility 1 | . . . . 1 Weapon 2 | . . . . 2 Highest Loss Streak 4 | . . . . 4 To Critical Strikes . | . . . . . Average Backups 15 | 2 9 16 18 23 Power 2 | . 2 2 2 4 Propulsion 4 | . 3 5 5 5 Utility 3 | . 1 3 4 4 Weapon 5 | . 2 6 7 8 Tool/Special . | . . . . . Unused Backups 19 | . . . . 19 Power 3 | . . . . 3 Propulsion 4 | . . . . 4 Utility 4 | . . . . 4 Weapon 8 | . . . . 8 Tool/Special . | . . . . . Average Slot Usage (%) 99 | . 100 100 100 99 Engine 13 | . 14 14 14 13 Wheel 28 | . 28 28 28 28 Device 13 | . 14 14 14 13 Storage 14 | . 14 14 14 14 Energy Gun 14 | . 14 14 14 14 Ballistic Gun 8 | . 14 14 7 . Impact Weapon 5 | . . . 6 14 Peak Build Rating 11 | 7 8 9 11 11 Average Rating 8 | 5 7 8 9 10 On Entrance 7 | . 7 8 9 11 Naked Turns . | . . . . . Heaviest Build 90 | 14 89 89 90 90 Greatest Support 32 | 32 32 32 32 32 Greatest Overweight (x) 2 | . 2 2 2 2 Average Overweight (x) 1 | . 1 2 2 2 Largest Inventory Capacity 25 | 8 25 25 25 25 Average Capacity 23 | 7 20 25 25 25 Most Carried 24 | 5 13 18 21 24 Average Carried 15 | 2 9 16 18 23 Final Capacity 25 | 8 25 25 25 25 Final Carried 23 | 5 13 18 21 23 Class Distribution -------------------- 100% | Mutant Dominant Class ---------------- Mutant | -10/Materials Mutant | -10/Mines Mutant | -10/Exiles Mutant | -9/Mines Resources | -11 -10 -10 -10 -9 ----------- Run | Yrd Mat Min Exi Min Matter Collected 346 | 279 45 10 . 12 Remotely . | . . . . . Salvage Created 338 | 121 199 . . 18 Parts 31 | 10 19 . . 2 Haulers Intercepted . | . . . . . Recyclers Shooed . | . . . . . Parts Field Recycled . | . . . . . Retrieved Matter . | . . . . . Parts Self-Destructed . | . . . . . Prevented . | . . . . . Kills | -11 -10 -10 -10 -9 ------- Run | Yrd Mat Min Exi Min Combat Hostiles Destroyed 12 | . 10 . . 2 Melee 1 | . . . . 1 Guns 11 | . 10 . . 1 Classes Destroyed 7 | 2 4 . . 1 Tunneler 3 | 3 . . . . Recycler 1 | 1 . . . . Operator 1 | . 1 . . . Watcher 1 | . 1 . . . Swarmer 10 | . 9 . . 1 Grunt 1 | . 1 . . . Demolisher 1 | . . . . 1 Best Kill Streak 6 | 4 6 . . 2 Combat Bots Only 6 | . 6 . . 2 Max Kills in Single Turn 2 | 1 2 . . 1 Gunslinging 1 | . 1 . . . Exploded . | . . . . . Melee 1 | . . . . 1 Uniques/NPCs Destroyed . | . . . . . Combat | -11 -10 -10 -10 -9 -------- Run | Yrd Mat Min Exi Min Hostile Shots Fired 62 | . 35 . . 27 Missed 19 | . 12 . . 7 Hits 43 | . 23 . . 20 Projectile 43 | . 23 . . 20 AOE 10 | . . . . 10 Damage Taken 684 | . 205 . . 479 Core 262 | . 101 . . 161 Absorbed by Shields . | . . . . . Core Remaining (%) 100 | 100 . . . . Volleys Fired 47 | 9 31 4 2 1 Largest 2 | 2 2 2 2 1 Hottest 70 | 70 70 70 70 50 Shots Fired 93 | 18 62 8 4 1 Gun 93 | 18 62 8 4 1 Cannon . | . . . . . Launcher . | . . . . . Special . | . . . . . Kinetic 46 | 9 31 4 2 . Thermal 47 | 9 31 4 2 1 Explosive . | . . . . . Electromagnetic . | . . . . . Robot Hit Streak 7 | 4 7 2 . 2 Robot Miss Streak 3 | 2 3 1 . . Penetration Max . | . . . . . Secondary Targets 2 | . 2 . . . Max Gunslinging Chain 1 | . 1 . . . Shots Hit Robots 58 | 11 39 5 . 3 Core Hits 25 | 5 16 2 . 2 Critical Kills . | . . . . . Critical Parts Destroyed 1 | . 1 . . . Critical Strikes 4 | 2 1 . . 1 Burn 3 | 2 . . . 1 Destroy 1 | . 1 . . . Melee Attacks 96 | . . . 94 2 Impact 96 | . . . 94 2 Slashing . | . . . . . Piercing . | . . . . . Sneak Attacks . | . . . . . Combat Hostiles . | . . . . . Follow-up Attacks . | . . . . . Damage Inflicted 619 | 115 397 50 . 57 Guns 574 | 115 397 50 . 12 Cannons . | . . . . . Explosions . | . . . . . Melee 45 | . . . . 45 Ramming . | . . . . . Kinetic 209 | 39 145 25 . . Thermal 365 | 76 252 25 . 12 Explosive . | . . . . . Electromagnetic . | . . . . . Impact 45 | . . . . 45 Slashing . | . . . . . Piercing . | . . . . . Highest Corruption . | . . . . . Average Corruption . | . . . . . Corruption Purged . | . . . . . Corruption Blocked . | . . . . . Overload Shots . | . . . . . Overflow Damage . | . . . . . Projectiles . | . . . . . Explosions . | . . . . . Melee . | . . . . . Knockbacks . | . . . . . Impact . | . . . . . Kinetic . | . . . . . Secondary . | . . . . . Self-Inflicted Damage . | . . . . . Shots . | . . . . . Rammed . | . . . . . Targets Rammed . | . . . . . Kicked . | . . . . . Crushed . | . . . . . Highest Temperature 90 | 70 90 80 40 10 Average Temperature 32 | 29 31 48 23 7 Received Heat Transfer 30 | . 30 . . . Siege Activations . | . . . . . Martial Activations . | . . . . . Shielding Activations . | . . . . . Robots Disrupted . | . . . . . Combat Hostiles . | . . . . . Robots Corrupted . | . . . . . Combat Hostiles . | . . . . . Parts Fried . | . . . . . Impact Corruptions . | . . . . . Robots Melted . | . . . . . Combat Hostiles . | . . . . . Parts Melted 2 | 1 1 . . . Heat Transferred 1295 | 370 740 74 . 111 Parts Sabotaged . | . . . . . Parts Stolen . | . . . . . Parts Stripped . | . . . . . Power Chain Reactions . | . . . . . Alert | -11 -10 -10 -10 -9 ------- Run | Yrd Mat Min Exi Min Maximum Alert Level 1 | . 1 . . . Low Security (%) 90 | 100 86 100 . 100 Level 1 9 | . 13 . . . Level 2 . | . . . . . Level 3 . | . . . . . Level 4 . | . . . . . Level 5 . | . . . . . High Security . | . . . . . Max Security . | . . . . . Peak Influence 232 | 10 232 18 . 50 Initial 18 | . . 18 . . Average 64 | 2 97 3 . 1 Influence Increases 451 | 20 381 . . 50 Destroy 0b10 Robot/C 240 | . 200 . . 40 Destroy 0b10 Robot/NC 30 | 20 10 . . . Destroy Leader 42 | . 32 . . 10 Successful Hack 34 | . 34 . . . Lose Combat Pursuer 105 | . 105 . . . Influence Decreases 451 | 20 333 48 . 50 Entered New Map 30 | . . 30 . . Time Decay 381 | 20 333 18 . 10 Lost Part 40 | . . . . 40 Squads Dispatched 2 | . 1 1 . . Investigation 1 | . . 1 . . Extermination . | . . . . . Reinforcement 1 | . 1 . . . Assault . | . . . . . Garrison . | . . . . . Intercept . | . . . . . Searches Triggered . | . . . . . Construction Impeded . | . . . . . Haulers Reinforced . | . . . . . Active Scanning Responses . | . . . . . Cargo Convoy Interrupts . | . . . . . Stealth | -11 -10 -10 -10 -9 --------- Run | Yrd Mat Min Exi Min Distress Signals 2 | . 1 . . 1 Communications Jammed . | . . . . . Distress Signals . | . . . . . Times Spotted 34 | . 28 . . 6 Peak Tracking Total 10 | . 10 . . 6 Tactical Retreats 4 | . 4 . . . Traps | -11 -10 -10 -10 -9 ------- Run | Yrd Mat Min Exi Min Traps Triggered . | . . . . . Indirectly . | . . . . . Trap Hack Attempts . | . . . . . Triggered . | . . . . . Disarmed . | . . . . . Reprogrammed . | . . . . . Reused . | . . . . . Traps Extracted . | . . . . . Installed . | . . . . . Triggered . | . . . . . Machines | -11 -10 -10 -10 -9 ---------- Run | Yrd Mat Min Exi Min Machines Disabled 1 | . . 1 . . Max in Single Turn 1 | . . 1 . . Machines Repaired . | . . . . . Machines Dismantled . | . . . . . Machines Sabotaged . | . . . . . Overloaded Fab Kills . | . . . . . Hacking | -11 -10 -10 -10 -9 --------- Run | Yrd Mat Min Exi Min Machines Accessed 12 | . 7 1 4 . Terminals 6 | . 6 . . . Fabricators . | . . . . . Repair Stations . | . . . . . Recycling Units 1 | . 1 . . . Scanalyzers . | . . . . . Garrison Access . | . . . . . Total Hacks 21 | . 16 1 4 . Successful 13 | . 8 1 4 . Failed 8 | . 8 . . . Catastrophic 1 | . 1 . . . Database Lockouts . | . . . . . Manual 11 | . 11 . . . Terminals 15 | . 15 . . . Fabricators . | . . . . . Repair Stations . | . . . . . Recycling Units 1 | . 1 . . . Scanalyzers . | . . . . . Garrison Access . | . . . . . Terminal Hacks 10 | . 5 1 4 . Record 4 | . . . 4 . Prototype ID Bank 1 | . 1 . . . Open Door 1 | . . 1 . . Terminal Index 1 | . 1 . . . Locate Traps 2 | . 2 . . . Registered Components 1 | . 1 . . . Fabricator Hacks . | . . . . . Repair Station Hacks . | . . . . . Recycling Unit Hacks 1 | . 1 . . . Retrieve Components 1 | . 1 . . . Scanalyzer . | . . . . . Garrison Access Hacks . | . . . . . Unauthorized Hacks 2 | . 2 . . . Terminals 2 | . 2 . . . Botnet 1 | . 1 . . . Operators 1 | . 1 . . . Fabricators . | . . . . . Repair Stations . | . . . . . Recycling Units . | . . . . . Scanalyzers . | . . . . . Garrison Access . | . . . . . Data Cores Recovered . | . . . . . Used . | . . . . . Hacking Detections 4 | . 4 . . . Full Trace Events . | . . . . . Feedback Events . | . . . . . Feedback Blocked . | . . . . . Robot Schematics Acquired . | . . . . . Robots Built . | . . . . . Authchips . | . . . . . Time . | . . . . . Total Robot Build Rating . | . . . . . Part Schematics Acquired . | . . . . . Parts Built . | . . . . . Authchips . | . . . . . Time . | . . . . . Total Part Build Rating . | . . . . . Parts Repaired . | . . . . . Time . | . . . . . Parts Recycled . | . . . . . Recycled Matter . | . . . . . Retrieved Matter . | . . . . . Retrieved Components 3 | . 3 . . . Parts Scanalyzed . | . . . . . Part Schematics Acquired . | . . . . . Parts Damaged . | . . . . . Bothacking | -11 -10 -10 -10 -9 ------------ Run | Yrd Mat Min Exi Min Used RIF Installer . | . . . . . Robots Hacked . | . . . . . Non-combat . | . . . . . Combat . | . . . . . Robot Hacks Applied . | . . . . . Relay Couplers Released . | . . . . . Fabnet Peak Effective % . | . . . . . Robots Rewired . | . . . . . Allies Hacked . | . . . . . Hacks Repelled . | . . . . . Allies | -11 -10 -10 -10 -9 -------- Run | Yrd Mat Min Exi Min Total Allies . | . . . . . Largest Group . | . . . . . Highest-Rated Group . | . . . . . Highest-Rated Ally . | . . . . . Total Orders . | . . . . . Ally Attacks . | . . . . . Total Damage . | . . . . . Kills . | . . . . . Allies Corrupted . | . . . . . Allies Melted . | . . . . . Intel | -11 -10 -10 -10 -9 ------- Run | Yrd Mat Min Exi Min Active Infowar (turns) 3466 | 11 1059 142 1952 302 Seismic 3466 | 11 1059 142 1952 302 Robot Analysis Total . | . . . . . Derelict Logs Recovered 1 | . . . . 1 Drone Launches . | . . . . . Drone Recoveries . | . . . . . Exploration | -11 -10 -10 -10 -9 ------------- Run | Yrd Mat Min Exi Min Turns Passed 3553 | 90 1059 142 1952 310 Spaces Moved 2298 | 45 638 96 1295 224 Core 1 | 1 . . . . Treads . | . . . . . Legs . | . . . . . Wheels 2297 | 44 638 96 1295 224 Hover . | . . . . . Flight . | . . . . . Fastest Speed 50 | 50 100 130 130 130 Average Speed 127 | 98 124 130 130 130 Slowest Speed 130 | 100 130 130 130 130 Overloaded Moves . | . . . . . Propulsion Burnouts . | . . . . . Robots Hopped . | . . . . . Potential Cave-ins . | . . . . . Cave-ins Triggered . | . . . . . Exploration Rate (%) 48 | 5 84 17 99 36 Regions Visited 4 Branch Regions 3 Pre-discovered Areas . | . . . . . Known Exits Taken . | . . . . . Unknown Exits Taken 4 | 1 1 1 1 . Scrap Searched 2 | . . 1 . 1 Spaces Dug 2 | . . . 2 . Terrain Destroyed 2 | . . . 2 . Melee 2 | . . . 2 . Projectile . | . . . . . AOE . | . . . . . Terrain Rammed . | . . . . . Walls Destroyed . | . . . . . Machines Disabled . | . . . . . Actions | -11 -10 -10 -10 -9 --------- Run | Yrd Mat Min Exi Min Total 2655 | 70 845 106 1395 239 Wait 185 | 5 169 2 1 8 Move 2294 | 44 637 95 1294 224 Hop . | . . . . . Pick Up 22 | 5 6 5 3 3 Fast Attach 7 | 7 . . . . Attach . | . . . . . Detach . | . . . . . Swap 3 | . 2 . 1 . Drop 1 | . . . . 1 Fire 47 | 9 31 4 2 1 Melee 96 | . . . 94 2 Ram . | . . . . . Kick . | . . . . . Crush . | . . . . . Escape Stasis . | . . . . . Rewire . | . . . . . Trap . | . . . . . Miscellaneous . | . . . . . Route ------- -11/Scrapyard -10/Materials (discovered 4 exits: [*Mat x2] / *Min / [*Sub]) -10/Mines -10/Exiles (discovered 2 exits: [*Min x2]) -9/Mines History --------- Turn | Location | Event 2 | -11/Scrapyard | Met Revision 17 21 | -11/Scrapyard | Discovered new exit (range 16) 91 | -11/Scrapyard | Entered Materials 310 | -10/Materials | Build established: Mutant 360 | -10/Materials | Discovered new exit (range 15) 625 | -10/Materials | Discovered new exit (range 16) 887 | -10/Materials | Discovered new exit (range 8) 1048 | -10/Materials | Discovered new exit (range 7) 1091 | -10/Materials | Derelicts attacked the area 1150 | -10/Materials | Entered Mines 1158 | -10/Mines | Met a Derelict shopkeep closing up shop 1249 | -10/Mines | Deemed a non-threat by the Exiles lab entrance 1251 | -10/Mines | Discovered new exit (range 5) 1292 | -10/Mines | Entered Exiles 1292 | -10/Exiles | Found Exiles lab abandoned 1958 | -10/Exiles | Discovered new exit (range 12) 2125 | -10/Exiles | Discovered new exit (range 15) 3244 | -10/Exiles | Entered Mines 3251 | -9/Mines | Received a Rocket Launcher from a helpful Derelict 3290 | -9/Mines | Assembled infested the area 3316 | -9/Mines | Learned Materials emergency access door positions 3519 | -9/Mines | Core integrity fell below 50% 3542 | -9/Mines | Core integrity fell below 20% 3554 | -9/Mines | Destroyed by D-53 Grenadier with Mini Grenade Launcher Last Messages --------------- 03525_ K-01 Serf collects debris. 03534_ S-10 Pest suffers critical hit (Burn). 03534_ S-10 Pest destroyed. 03534_ K-01 Serf collects debris. 03535_ R-06 Scavenger collects Flight Unit. 03537_ The unstable cave ceiling collapses. 03537_ R-06 Scavenger crushed by falling debris. 03537_ R-06 Scavenger destroyed. 03537_ 32 Matter crushed. 03537_ R-06 Scavenger destroyed. 03538_ K-01 Serf collects debris. 03539_ The unstable cave ceiling collapses. 03542_ D-53 Grenadier destroyed. 03544_ K-01 Serf collects debris. 03545_ The unstable cave ceiling collapses. 03546_ Seismic Detector destroyed. 03548_ Ion Engine destroyed. 03550_ Med. Laser destroyed. 03552_ Hammer destroyed. 03552_ K-01 Serf destroyed. Map ----- +----------------------------------------------------+ | ??????????????## #??# #???????????????? | | ?????????????## #??#### #???????????????? | | ????????????## ####?????# #???????????????? | | ????????????# #????????# #???????????????? | | ????????????# ##????????# ???????????????? | | ????????????## ###??####???###???????????????? | | ?????????????## ##???## #######???????????????? | | ??????????????# ##???## #??????????##???? | | ??????????????# #??### #### #?????????? ???? | | ??????????????# #?## #??# #??????????# ???? | | ??????????????# ### #??# #????????### ???? | | ??????????????# ## ##??# #????????# ##?? | | ????????????### # ##???# #????????# #?? | | ???????????## ##????# #????????# #?? | | ???????????# ###?????# #????????# #?? | | ???????????# #####????# ########?# #?? | | ???????????## ##???# #?# #?? | | ????????????## ##??####### #??# ##? | | ?????????????### ##??# ???# #???# ## | | ???????????????## ! #??# ?## #??## %# | | ????????????????## #### ## #### # | | ?????????????????# # | | ?????????????????## ## ## ## | | ??????????????????## #?## ## ####? | | ???????????????????## ##?###### ## #???? | | ???????????????????#"# [@ #??????## #???? | | ???????????????????## #??????# ####???? | | ????????????????????# #?????# #??????? | | ????????????????????" d ? ##??????? | | ????????????????????" ## #???????? | | ????????????????????#X #?######## ##???????? | | ????????????????????# #????????# #????????? | | ????????????????????## ????????## ????????? | | ????????????????????? ????????# ????????? | | ????????????????????? ????????## #????????? | | ????????????????????#### ?????????# ?????????? | | ???????????????????????## ????????# ?????????? | | ?????????????????????????### ????????# ?????????? | | ????????????????????????????????????? ?????????? | | ?????????????????????????????????????????????????? | | ?????????????????????????????????????????????????? | | ?????????????????????????????????????????????????? | | ?????????????????????????????????????????????????? | | ?????????????????????????????????????????????????? | | ?????????????????????????????????????????????????? | | ?????????????????????????????????????????????????? | | ?????????????????????????????????????????????????? | | ?????????????????????????????????????????????????? | | ?????????????????????????????????????????????????? | | ?????????????????????????????????????????????????? | +----------------------------------------------------+ Best States ------------- Heat Dissipation 25 Energy Generation 10 Energy Capacity 250 Matter Stores 300 Matter Capacity 300 Sight Range 16 Terrain Scan Density 10 Evasion (%) 40 Item Schematics ----------------- None Robot Schematics ------------------ None Fabricated ------------ Nothing Repaired ---------- Nothing Alien Tech Used ----------------- None Achievements -------------- None Challenges ------------ None Game ------ Seed FluxGrenadeBox Manual? 0 Play Time 00:23:33 Cumulative 476.4 hours Start 2025.08.31 @ 00:12:41 End 2025.10.19 @ 00:55:58 Sessions 3 Manual Loads 0 Difficulty Rogue Special Mode None Game No. 224 Rogue 224 Adventurer 0 Explorer 0 Win Type - Total 6 Types 5/0/0/0/0/0/1/0/0/0 Lore% 66 Gallery% 72 Achievement% 64 Wizard Run 0 Options --------- Layout 0 ASCII 0 Keyboard 1 Movement Vi Keybinds 0 Fullscreen 2 Font 18/SmallcapsGlow Map View 76x50 Zoom Use 0% Tactical HUD 1 Map Filters NONE Filters NONE Steam 1 RUN: 3918cccd-bda7-409c-b1b5-054c35cdc2ac